bitfinex/quotes_BTCUSD_20250110
["timestamp","ask_amount","ask_price","bid_price","bid_amount"]
[1736513176423,0.0001706,95004.0,95003.0,0.44172985]
[1736513177246,0.0001706,95004.0,95003.0,0.76872985]
[1736513177633,0.0001706,95004.0,95003.0,0.77926116]
[1736513180926,0.0001706,95004.0,95003.0,0.87926116]
[1736513182324,0.0001706,95008.0,95004.0,0.571034]
[1736513182525,0.0001706,95008.0,95007.0,0.68751]
[1736513182724,0.0001706,95008.0,95007.0,0.82464251]
[1736513182969,0.0001706,95008.0,95007.0,0.83902039]
[1736513183833,0.0001706,95008.0,95007.0,0.84702039]
[1736513184712,0.0001706,95008.0,95007.0,0.92892039]
[1736513185097,0.0001706,95008.0,95007.0,0.93192039]
[1736513186012,0.0001706,95008.0,95007.0,0.89908764]
[1736513186196,0.0001706,95008.0,95007.0,0.95281625]
[1736513186576,0.0001706,95008.0,95007.0,0.95281769]
[1736513187333,9.342e-05,95015.0,95014.0,0.210495]
[1736513187606,9.342e-05,95015.0,95014.0,0.31479476]
[1736513187764,9.342e-05,95015.0,95014.0,0.32914601]
[1736513188549,9.342e-05,95015.0,95014.0,0.33114601]
[1736513189117,9.342e-05,95015.0,95014.0,1.83114601]
[1736513190078,9.342e-05,95015.0,95014.0,1.83614601]
[1736513190705,9.342e-05,95015.0,95014.0,1.98614601]
[1736513190918,9.342e-05,95015.0,95014.0,2.09420471]
[1736513191134,9.342e-05,95015.0,95014.0,2.14090471]
[1736513191734,0.0001706,95043.0,95023.0,0.210475]
[1736513191938,0.0001706,95043.0,95023.0,0.31477476]
[1736513192289,0.0001706,95043.0,95023.0,0.55769056]
[1736513192495,0.0001706,95043.0,95023.0,0.96424887]
[1736513192927,0.0001706,95043.0,95023.0,2.56424887]
[1736513193140,6e-07,95024.0,95023.0,2.66417729]
[1736513194082,6e-07,95024.0,95023.0,2.59434202]
[1736513194291,6e-07,95024.0,95023.0,2.68527044]
[1736513194719,6e-07,95024.0,95023.0,2.69427044]
[1736513195133,6e-07,95024.0,95023.0,2.70027044]
[1736513197595,6e-07,95024.0,95023.0,2.60034202]
[1736513197803,6e-07,95024.0,95023.0,2.70027044]
[1736513199358,2e-07,95025.0,95024.0,0.34992842]
[1736513199563,0.0001706,95043.0,95030.0,0.1]
[1736513199768,0.00030412,95038.0,95037.0,0.360444]
[1736513199977,0.00030412,95038.0,95037.0,1.96474376]
[1736513200178,0.00030412,95038.0,95037.0,1.97900223]
[1736513200552,0.00025235,95038.0,95037.0,1.97900223]
[1736513201450,0.00025235,95038.0,95037.0,2.03900223]
[1736513202073,0.00025235,95038.0,95037.0,2.54370223]
[1736513202282,0.00025235,95038.0,95037.0,2.85452061]
[1736513202940,0.0001706,95043.0,95042.0,0.1]
[1736513203091,0.0001706,95043.0,95042.0,0.43199976]
[1736513203297,0.0001706,95043.0,95042.0,0.65666959]
[1736513203923,0.0001706,95043.0,95042.0,2.15666959]
[1736513204323,0.0001706,95043.0,95042.0,2.18943567]
[1736513204527,0.05,95045.0,95044.0,0.577]
[1736513204708,0.05,95045.0,95044.0,0.68129976]
[1736513204911,0.05,95045.0,95044.0,0.69552846]
[1736513205317,0.05,95045.0,95044.0,2.19552846]
[1736513205755,0.05,95045.0,95044.0,2.42135688]
[1736513205951,0.01081797,95045.0,95044.0,2.45410598]
[1736513206155,8.53e-05,95054.0,95052.0,0.1]
[1736513206378,8.53e-05,95054.0,95053.0,0.46470776]
[1736513206580,8.53e-05,95054.0,95053.0,0.47890192]
[1736513207562,8.53e-05,95054.0,95053.0,0.48290192]
[1736513207761,8.53e-05,95054.0,95053.0,0.49190192]
[1736513209007,8.53e-05,95054.0,95053.0,0.50255258]
[1736513210073,8.53e-05,95054.0,95053.0,0.82955258]
[1736513219810,8.53e-05,95054.0,95053.0,0.81890192]
[1736513220110,8.53e-05,95054.0,95053.0,0.66890192]
[1736513221999,8.53e-05,95054.0,95053.0,0.02719416]
[1736513222000,0.0782853,95054.0,95053.0,0.02719416]
[1736513222202,0.1260853,95054.0,95053.0,0.02719416]
[1736513223038,0.1260853,95054.0,95053.0,0.02319416]
[1736513223288,0.1260853,95054.0,95053.0,0.02519416]
[1736513223874,0.1260853,95054.0,95053.0,0.002]
[1736513224073,0.1260853,95054.0,95053.0,0.008]
[1736513224413,0.1230853,95054.0,95053.0,0.008]
[1736513225564,0.1200853,95054.0,95053.0,0.008]
[1736513227598,0.210374,95069.0,95053.0,0.008]
[1736513227599,0.0461,95067.0,95053.0,0.11229976]
[1736513227812,0.0461,95067.0,95054.0,0.10429976]
[1736513228034,0.00014633,95080.0,95054.0,0.10429976]
[1736513228035,0.0461,95077.0,95054.0,0.10429976]
[1736513228243,0.00131482,95076.0,95065.0,0.210381]
[1736513228451,0.00131482,95076.0,95065.0,0.31468076]
[1736513228659,0.0782,95075.0,95066.0,0.01184059]
[1736513228932,0.00131482,95074.0,95066.0,0.01184059]
[1736513231074,0.0792,95075.0,95067.0,0.210377]
[1736513231300,0.0782,95075.0,95067.0,0.22221379]
[1736513231479,0.00131482,95074.0,95067.0,0.01183679]
[1736513231703,0.00231482,95074.0,95065.0,0.31468076]
[1736513231904,0.0782,95075.0,95068.0,0.01183299]
[1736513232084,0.0782,95075.0,95065.0,0.31468076]
[1736513232265,0.0782,95075.0,95069.0,0.01182919]
[1736513232461,0.21167682,95074.0,95067.0,0.002]
[1736513232667,0.210362,95074.0,95065.0,0.10429976]
[1736513232864,0.00131482,95073.0,95065.0,0.10629976]
[1736513233071,0.00131482,95073.0,95066.0,0.01184059]
[1736513233501,0.210366,95072.0,95066.0,0.01184059]
[1736513234306,0.00131482,95071.0,95066.0,0.01184059]
[1736513234625,0.210366,95072.0,95067.0,0.002]
[1736513235040,0.210366,95072.0,95068.0,0.01183299]
[1736513235669,0.210366,95072.0,95069.0,0.01182919]
[1736513235872,0.210366,95072.0,95067.0,0.004]
[1736513236080,0.210366,95072.0,95070.0,0.01182539]
[1736513236307,0.210366,95072.0,95067.0,0.001]
[1736513236509,0.0782,95075.0,95068.0,0.003]
[1736513236708,0.00131482,95074.0,95068.0,0.004]
[1736513236889,0.00131482,95074.0,95069.0,0.01182919]
[1736513238553,0.420729,95073.0,95069.0,0.01182919]
[1736513238761,0.07741491,95072.0,95069.0,0.01182919]
[1736513238965,0.210372,95070.0,95069.0,0.002]
[1736513239508,0.210372,95070.0,95069.0,0.003]
[1736513239808,0.210372,95070.0,95051.0,0.22112758]
[1736513239809,0.210388,95063.0,95051.0,0.17212758]
[1736513239926,0.210388,95063.0,95052.0,0.10429976]
[1736513240132,0.210388,95063.0,95052.0,0.11619355]
[1736513240333,0.07851498,95062.0,95052.0,0.01189379]
[1736513240539,0.0472,95061.0,95047.0,0.53742]
[1736513240739,0.210395,95059.0,95053.0,0.01188957]
[1736513240939,0.00131503,95058.0,95048.0,0.10429976]
[1736513241141,0.00131503,95058.0,95054.0,0.01188577]
[1736513241497,0.00131503,95058.0,95048.0,0.10429976]
[1736513241706,0.00131503,95058.0,95055.0,0.01188197]
[1736513241901,0.00131503,95058.0,95048.0,0.10429976]
[1736513242225,0.00131503,95058.0,95052.0,0.001]
[1736513242646,0.00131503,95058.0,95053.0,0.01188957]
[1736513242855,0.00131503,95060.0,95054.0,0.002]
[1736513243266,0.00131503,95060.0,95055.0,0.01188236]
[1736513244111,0.210395,95059.0,95055.0,0.01188236]
[1736513244303,0.00131503,95058.0,95055.0,0.01188236]
[1736513244804,0.00131503,95058.0,95049.0,0.210417]
[1736513245043,0.00131503,95058.0,95052.0,0.002]
[1736513245181,0.00131503,95058.0,95051.0,0.210413]
[1736513245536,0.00131503,95060.0,95055.0,0.002]
[1736513246089,0.00131503,95060.0,95056.0,0.01187856]
[1736513246291,0.0772,95062.0,95056.0,0.01187856]
[1736513246572,0.0772,95062.0,95057.0,0.01187476]
[1736513246806,0.00131503,95061.0,95057.0,0.01187476]
[1736513246972,0.00131503,95061.0,95051.0,0.210413]
[1736513247377,0.00131503,95061.0,95052.0,0.01189377]
[1736513247551,0.210393,95060.0,95052.0,0.01189377]
[1736513247762,0.210393,95060.0,95052.0,0.002]
[1736513247763,0.00131503,95059.0,95052.0,0.002]
[1736513248084,0.00131503,95059.0,95053.0,0.01188996]
[1736513248317,0.00131503,95061.0,95053.0,0.01188996]
[1736513248491,0.00131503,95061.0,95054.0,0.01188616]
[1736513248891,0.00131503,95061.0,95050.0,0.10429976]
[1736513249112,0.00131503,95061.0,95055.0,0.01188236]
[1736513249311,0.00131503,95061.0,95051.0,0.210413]
[1736513249512,0.00131503,95061.0,95056.0,0.01187856]
[1736513249725,0.00131503,95061.0,95053.0,0.001]
[1736513249926,0.00131503,95061.0,95057.0,0.01187476]
[1736513250136,0.00131503,95061.0,95053.0,0.001]
[1736513250342,0.00131503,95061.0,95058.0,0.01187096]
[1736513250536,0.00131503,95061.0,95053.0,0.001]
[1736513250973,0.00131503,95061.0,95054.0,0.01188616]
[1736513251465,0.0803,95053.0,95040.0,0.210435]
[1736513251701,0.0803,95059.0,95045.0,0.210426]
[1736513251907,0.0803,95059.0,95053.0,0.001]
[1736513252119,0.0832,95067.0,95054.0,0.10429976]
[1736513252323,0.00131494,95066.0,95054.0,0.10429976]
[1736513252516,0.00131494,95066.0,95054.0,0.10529976]
[1736513252722,0.00131494,95066.0,95057.0,0.210398]
[1736513252930,0.00131494,95066.0,95057.0,0.31469776]
[1736513253782,0.0832,95067.0,95057.0,0.31469776]
[1736513253993,0.0795,95072.0,95060.0,0.210391]
[1736513254206,0.0795,95072.0,95060.0,0.31469076]
[1736513254615,0.13,95073.0,95063.0,0.210385]
[1736513254783,0.13,95073.0,95066.0,0.210378]
[1736513255193,0.001,95067.0,95066.0,0.210378]
[1736513255618,0.13,95073.0,95070.0,0.210371]
[1736513255791,0.131,95073.0,95070.0,0.210371]
[1736513256010,0.132,95073.0,95070.0,0.210371]
[1736513256384,0.132,95073.0,95067.0,0.31467676]
[1736513257033,0.131,95073.0,95067.0,0.31467676]
[1736513257691,0.13,95073.0,95067.0,0.31467676]
[1736513258387,0.13,95073.0,95070.0,0.210369]
[1736513258626,0.13,95073.0,95072.0,0.210366]
[1736513258764,0.13,95073.0,95072.0,0.31466576]
[1736513260067,0.13,95073.0,95072.0,0.31566576]
[1736513261507,0.13,95073.0,95072.0,0.31866576]
[1736513262710,0.13,95073.0,95072.0,0.33048184]
[1736513266843,0.13,95073.0,95072.0,0.40798184]
[1736513269112,0.124,95073.0,95072.0,0.40798184]
[1736513274548,0.124,95073.0,95072.0,0.33048184]
[1736513275454,0.12,95073.0,95072.0,0.3245735]
[1736513281352,0.12,95073.0,95072.0,0.33047959]
[1736513281980,0.12,95073.0,95072.0,0.12011359]
[1736513287672,0.12,95073.0,95072.0,0.11420675]
[1736513295716,0.2015,95073.0,95072.0,0.00990699]
[1736513295956,0.2015,95073.0,95072.0,0.004]
[1736513304453,0.12,95073.0,95072.0,0.004]
[1736513304660,0.12131486,95073.0,95072.0,0.004]
[1736513311158,0.12,95073.0,95072.0,0.004]
[1736513312622,0.11994432,95073.0,95072.0,0.004]
[1736513313000,0.11994432,95073.0,95072.0,0.00990756]
[1736513314256,0.33030832,95073.0,95072.0,0.004]
[1736513314430,0.11994432,95073.0,95072.0,0.004]
[1736513318090,0.14294432,95073.0,95072.0,0.004]
[1736513319347,0.35330832,95073.0,95072.0,0.004]
[1736513324557,0.14294432,95073.0,95072.0,0.004]
[1736513325580,0.14425918,95073.0,95072.0,0.004]
[1736513327360,0.14294432,95073.0,95072.0,0.004]
[1736513330665,0.14294432,95073.0,95072.0,0.00990756]
[1736513330879,0.11994432,95073.0,95072.0,0.10829976]
[1736513331084,0.11994432,95073.0,95072.0,0.11420732]
[1736513332462,0.11994432,95073.0,95072.0,0.1288126]
[1736513336047,0.11994432,95073.0,95072.0,0.29037737]
[1736513336737,0.11994432,95073.0,95072.0,0.44037737]
[1736513336942,0.11994432,95073.0,95072.0,0.43937737]
[1736513337219,0.11994432,95073.0,95072.0,0.76937737]
[1736513337427,0.11994432,95073.0,95072.0,0.76637737]
[1736513337595,0.11994432,95073.0,95072.0,0.76337737]
[1736513337802,0.11994432,95073.0,95072.0,0.77237737]
[1736513338034,0.11994432,95073.0,95072.0,0.76337737]
[1736513338422,0.11994432,95073.0,95072.0,0.7746358]
[1736513339208,0.11994432,95073.0,95072.0,0.8817158]
[1736513339492,0.11994432,95073.0,95072.0,0.88571518]
[1736513339689,0.09890832,95073.0,95072.0,0.88571518]
[1736513340328,0.09890832,95073.0,95072.0,2.38571518]
[1736513340628,0.09890832,95073.0,95072.0,2.38171518]
[1736513340829,0.09890832,95073.0,95072.0,2.37271518]
[1736513341041,0.09890832,95073.0,95072.0,2.38571518]
[1736513341398,0.09890832,95073.0,95072.0,2.37671518]
[1736513341820,0.09890832,95073.0,95072.0,0.88571518]
[1736513342425,0.09890832,95073.0,95072.0,0.88171518]
[1736513342729,0.09890832,95073.0,95072.0,0.88771518]
[1736513343170,0.03580032,95073.0,95072.0,0.89043693]
[1736513343564,0.00014633,95080.0,95079.0,0.2766]
[1736513343783,0.00014633,95080.0,95079.0,0.38089976]
[1736513344207,0.00014633,95080.0,95079.0,0.38904514]
[1736513344943,0.00014633,95080.0,95079.0,0.39804514]
[1736513345560,0.00014633,95080.0,95079.0,0.79804514]
[1736513345827,0.00014633,95080.0,95079.0,0.80304514]
[1736513346203,0.00014633,95080.0,95079.0,0.82397893]
[1736513346712,0.00014633,95080.0,95079.0,0.82669208]
[1736513350415,0.00014633,95080.0,95079.0,2.32669208]
[1736513350728,6.3e-07,95082.0,95081.0,0.25]
[1736513350900,9.806e-05,95082.0,95081.0,0.48159976]
[1736513351140,9.806e-05,95082.0,95081.0,0.49245021]
[1736513351353,9.806e-05,95082.0,95081.0,1.99245021]
[1736513352105,9.806e-05,95082.0,95081.0,2.00645021]
[1736513352710,9.806e-05,95082.0,95081.0,2.00145021]
[1736513352911,9.806e-05,95082.0,95081.0,2.00845021]
[1736513353745,6e-08,95082.0,95081.0,2.00845021]
[1736513355282,6e-08,95082.0,95081.0,2.00573737]
[1736513357205,6e-08,95082.0,95081.0,2.00844979]
[1736513360275,6e-08,95082.0,95081.0,0.40844979]
[1736513360480,6e-08,95082.0,95081.0,0.28818979]
[1736513361310,6e-08,95082.0,95081.0,0.27918979]
[1736513361740,6e-08,95082.0,95081.0,0.28118979]
[1736513361942,6e-08,95082.0,95081.0,0.27218979]
[1736513362142,6e-08,95082.0,95081.0,0.27618979]
[1736513362398,6e-08,95082.0,95081.0,0.28518979]
[1736513362624,6e-08,95082.0,95081.0,0.28118979]
[1736513363059,6e-08,95082.0,95081.0,0.28618979]
[1736513369339,6e-08,95082.0,95081.0,1.78618979]
[1736513371665,6e-08,95082.0,95081.0,1.81903653]
[1736513372497,6e-08,95082.0,95081.0,1.78618979]
[1736513373404,6e-08,95082.0,95081.0,1.81903629]
[1736513376586,6e-08,95082.0,95081.0,1.78618979]
[1736513382439,6e-08,95082.0,95081.0,0.28618979]
[1736513384842,6e-08,95082.0,95081.0,0.31903076]
[1736513386581,6e-08,95082.0,95081.0,1.81903076]
[1736513387922,6e-08,95082.0,95081.0,1.86613076]
[1736513388130,6e-08,95082.0,95081.0,1.94913076]
[1736513388336,6e-08,95082.0,95081.0,2.34913076]
[1736513400383,6e-08,95082.0,95081.0,2.34889774]
[1736513401712,6e-08,95082.0,95081.0,3.22379774]
[1736513403295,6e-08,95082.0,95081.0,3.12379774]
[1736513404069,6e-08,95082.0,95081.0,2.82379774]
[1736513406195,6e-08,95082.0,95081.0,3.02921748]
[1736513407090,6e-08,95082.0,95081.0,3.02421748]
[1736513407301,6e-08,95082.0,95081.0,3.03121748]
[1736513408159,6e-08,95082.0,95081.0,3.02221748]
[1736513408403,6e-08,95082.0,95081.0,3.03121748]
[1736513413006,6e-08,95082.0,95081.0,2.68152208]
[1736513413206,6e-08,95082.0,95081.0,2.53889076]
[1736513413437,6e-08,95082.0,95081.0,1.04593076]
[1736513413641,6e-08,95082.0,95081.0,1.00604979]
[1736513413842,6e-08,95082.0,95081.0,1.01308979]
[1736513414081,6e-08,95082.0,95081.0,0.46518979]
[1736513414286,6e-08,95082.0,95081.0,0.45814979]
[1736513414490,6e-08,95082.0,95081.0,0.45818979]
[1736513414724,6e-08,95082.0,95081.0,0.44918979]
[1736513414929,6e-08,95082.0,95081.0,0.45518979]
[1736513415143,6e-08,95082.0,95081.0,0.46418979]
[1736513415352,6e-08,95082.0,95081.0,0.45518979]
[1736513415759,6e-08,95082.0,95081.0,0.45414979]
[1736513416021,6e-08,95082.0,95081.0,0.45518979]
[1736513416209,6e-08,95082.0,95081.0,0.46118979]
[1736513416389,6e-08,95082.0,95081.0,0.45518979]
[1736513416591,6e-08,95082.0,95081.0,0.45718979]
[1736513417308,6e-08,95082.0,95081.0,0.45518979]
[1736513417516,6e-08,95082.0,95081.0,0.45718979]
[1736513419722,6e-08,95082.0,95081.0,0.13018979]
[1736513421261,6e-08,95082.0,95081.0,1.78018979]
[1736513422053,6e-08,95082.0,95081.0,0.28018979]
[1736513431520,6e-08,95082.0,95081.0,0.28625868]
[1736513434122,6e-08,95082.0,95081.0,0.28633868]
[1736513441890,6e-08,95082.0,95081.0,0.36773868]
[1736513442320,6e-08,95082.0,95081.0,0.40053783]
[1736513443755,6e-08,95082.0,95081.0,2.22753783]
[1736513445624,6e-08,95082.0,95081.0,2.27533783]
[1736513446432,6e-08,95082.0,95081.0,2.6941828]
[1736513448759,6e-08,95082.0,95081.0,2.68768937]
[1736513449547,6e-08,95082.0,95081.0,1.18768937]
[1736513450112,6e-08,95082.0,95081.0,2.68768937]
[1736513450318,6e-08,95082.0,95081.0,1.18768937]
[1736513451093,6e-08,95082.0,95081.0,2.68768937]
[1736513451796,6e-08,95082.0,95081.0,2.55848937]
[1736513452168,6e-08,95082.0,95081.0,2.54936937]
[1736513452369,6e-08,95082.0,95081.0,2.55648937]
[1736513452623,6e-08,95082.0,95081.0,2.55548937]
[1736513452994,6e-08,95082.0,95081.0,1.05548937]
[1736513454043,6e-08,95082.0,95081.0,1.06448937]
[1736513454373,6e-08,95082.0,95081.0,0.6456444]
[1736513455508,6e-08,95082.0,95081.0,1.06431784]
[1736513455908,6e-08,95082.0,95081.0,0.6456444]
[1736513457971,6e-08,95082.0,95081.0,0.6385244]
[1736513458178,6e-08,95082.0,95081.0,0.6456444]
[1736513459576,6e-08,95082.0,95081.0,0.6385244]
[1736513459738,6e-08,95082.0,95081.0,0.6456444]
[1736513460071,6e-08,95082.0,95081.0,2.1456444]
[1736513461471,6e-08,95082.0,95081.0,2.2263444]
[1736513461675,6e-08,95082.0,95081.0,2.2752444]
[1736513462469,6e-08,95082.0,95081.0,2.2702444]
[1736513462691,6e-08,95082.0,95081.0,2.2762444]
[1736513463763,6e-08,95082.0,95081.0,2.37273687]
[1736513463964,6e-08,95082.0,95081.0,3.02056529]
[1736513464109,6e-08,95082.0,95081.0,3.02956529]
[1736513464972,6e-08,95082.0,95081.0,3.01456529]
[1736513465192,6e-08,95082.0,95081.0,3.02356529]
[1736513465489,6e-08,95082.0,95081.0,3.03056529]
[1736513466245,6e-08,95082.0,95081.0,3.03751508]
[1736513467342,6e-08,95082.0,95081.0,3.35673212]
[1736513471745,6e-08,95082.0,95081.0,3.03751508]
[1736513477692,6e-08,95082.0,95081.0,2.93751508]
[1736513478703,6e-08,95082.0,95081.0,3.03751508]
[1736513480075,6e-08,95082.0,95081.0,2.55768666]
[1736513480661,6e-08,95082.0,95081.0,1.20768666]
[1736513481482,6e-08,95082.0,95081.0,1.20219419]
[1736513481881,6e-08,95082.0,95081.0,0.49717419]
[1736513482085,0.07570006,95082.0,95081.0,0.14449504]
[1736513483971,0.07570006,95082.0,95081.0,0.12849504]
[1736513484203,0.07570006,95082.0,95081.0,0.14149504]
[1736513484818,0.07570006,95082.0,95081.0,0.13749504]
[1736513485012,0.07570006,95082.0,95081.0,0.13249504]
[1736513485206,0.07570006,95082.0,95081.0,0.14149504]
[1736513485383,6e-08,95082.0,95081.0,0.14149504]
[1736513485626,6e-08,95082.0,95081.0,0.13749504]
[1736513486776,6e-08,95082.0,95081.0,1.82031305]
[1736513487010,6e-08,95082.0,95081.0,1.82431305]
[1736513487433,6e-08,95082.0,95081.0,2.24322598]
[1736513487811,6e-08,95082.0,95081.0,1.82431305]
[1736513490653,6e-08,95082.0,95081.0,1.90651305]
[1736513490849,6e-08,95082.0,95081.0,2.53351305]
[1736513491054,6e-08,95082.0,95081.0,2.68231305]
[1736513491860,6e-08,95082.0,95081.0,2.78373377]
[1736513492107,6e-08,95082.0,95081.0,2.77473377]
[1736513492339,6e-08,95082.0,95081.0,2.78373377]
[1736513492720,6e-08,95082.0,95081.0,3.10295081]
[1736513493957,6e-08,95082.0,95081.0,3.10995081]
[1736513494685,6e-08,95082.0,95081.0,3.65785081]
[1736513496307,6e-08,95082.0,95081.0,3.33863377]
[1736513501201,6e-08,95082.0,95081.0,3.33151377]
[1736513501408,6e-08,95082.0,95081.0,3.33871377]
[1736513503665,6e-08,95082.0,95081.0,3.34871377]
[1736513525209,6e-08,95082.0,95081.0,3.66761022]
[1736513526029,6e-08,95082.0,95081.0,3.34871377]
[1736513527162,3.6e-07,95093.0,95092.0,0.360322]
[1736513527359,4.91e-05,95093.0,95092.0,0.49743977]
[1736513527797,4.91e-05,95093.0,95092.0,2.01476975]
[1736513527971,4.91e-05,95093.0,95092.0,2.02196975]
[1736513528487,4.91e-05,95093.0,95092.0,2.03096975]
[1736513529028,4.91e-05,95093.0,95092.0,2.03696975]
[1736513530533,4.91e-05,95093.0,95092.0,2.91186975]
[1736513532413,4.91e-05,95093.0,95092.0,2.92326829]
[1736513533437,4.91e-05,95093.0,95092.0,2.94407068]
[1736513535359,4.91e-05,95093.0,95092.0,1.44407068]
[1736513535574,0.0766491,95093.0,95092.0,1.28687068]
[1736513535787,0.0766491,95093.0,95092.0,1.27326829]
[1736513536211,0.0766491,95093.0,95092.0,1.42326829]
[1736513536625,0.0766491,95093.0,95092.0,1.2947475]
[1736513536765,0.0766491,95093.0,95092.0,1.2857475]
[1736513536971,0.0766491,95093.0,95092.0,1.2797475]
[1736513537189,0.0766491,95093.0,95092.0,0.86936829]
[1736513538270,0.0766491,95093.0,95092.0,1.28877623]
[1736513538443,0.0766491,95093.0,95092.0,1.29277623]
[1736513539491,0.0766491,95093.0,95092.0,0.87336829]
[1736513540199,0.0766491,95093.0,95092.0,2.37336829]
[1736513541437,0.0766491,95093.0,95092.0,0.87336829]
[1736513541619,0.0766491,95093.0,95092.0,0.84055028]
[1736513544589,0.0766491,95093.0,95092.0,0.82195174]
[1736513544788,0.0766491,95093.0,95092.0,0.82915174]
[1736513548007,0.0766491,95093.0,95092.0,0.82195174]
[1736513548248,0.0766491,95093.0,95092.0,0.82915174]
[1736513548744,0.0766491,95093.0,95092.0,2.32915174]
[1736513549931,0.0766491,95093.0,95092.0,0.82915174]
[1736513553623,4.91e-05,95093.0,95092.0,0.82915174]
[1736513553807,4.91e-05,95093.0,95092.0,2.32915174]
[1736513554417,4.91e-05,95093.0,95092.0,0.82915174]
[1736513563983,4.91e-05,95093.0,95092.0,0.82195174]
[1736513564182,4.91e-05,95093.0,95092.0,0.82911174]
[1736513565993,0.0756491,95093.0,95092.0,0.03032998]
[1736513566220,0.1220491,95093.0,95092.0,0.03748998]
[1736513567071,0.1220491,95093.0,95092.0,0.02848998]
[1736513567276,0.1220491,95093.0,95092.0,0.03548998]
[1736513567532,0.1220491,95093.0,95092.0,0.01816]
[1736513567707,0.1220491,95093.0,95092.0,0.01416]
[1736513567911,0.1450491,95093.0,95092.0,0.01416]
[1736513568071,0.14636374,95093.0,95092.0,0.01616]
[1736513569236,0.12336381,95093.0,95092.0,0.00716]
[1736513569452,0.12336381,95093.0,95092.0,0.00816]
[1736513569694,0.1220491,95093.0,95092.0,0.01116]
[1736513569906,0.1220491,95093.0,95092.0,0.11545976]
[1736513570084,0.1220491,95093.0,95092.0,0.13279293]
[1736513572335,0.1220491,95093.0,95092.0,0.12563293]
[1736513572542,0.1450491,95093.0,95092.0,0.02849317]
[1736513572891,0.14636381,95093.0,95092.0,0.01116]
[1736513574264,0.14636381,95093.0,95092.0,0.01016]
[1736513575565,0.14636381,95093.0,95092.0,0.00716]
[1736513575793,0.233322,95092.0,95091.0,0.00716]
[1736513576967,0.233322,95092.0,95091.0,0.01016]
[1736513584613,0.210322,95092.0,95091.0,0.01016]
[1736513588907,0.1220491,95093.0,95091.0,0.01016]
[1736513589107,0.00131469,95092.0,95091.0,0.01016]
[1736513589528,0.00131469,95092.0,95091.0,0.003]
[1736513589750,0.00131469,95092.0,95089.0,0.00716]
[1736513589949,0.00131469,95092.0,95091.0,0.002]
[1736513590468,0.07696378,95093.0,95089.0,0.00716]
[1736513590682,0.07696378,95093.0,95091.0,0.003]
[1736513591026,0.0756491,95093.0,95091.0,0.003]
[1736513591931,0.0756491,95093.0,95089.0,0.00716]
[1736513592293,0.210322,95092.0,95090.0,0.01734299]
[1736513592678,0.210322,95092.0,95089.0,0.00716]
[1736513592886,0.210322,95092.0,95091.0,0.002]
[1736513593341,0.210322,95092.0,95089.0,0.00716]
[1736513593757,0.210322,95092.0,95090.0,0.02034299]
[1736513593981,0.210322,95092.0,95090.0,0.01734299]
[1736513594171,0.210322,95092.0,95089.0,0.00716]
[1736513594559,0.210322,95092.0,95090.0,0.01734299]
[1736513594940,0.210322,95092.0,95089.0,0.00716]
[1736513595136,0.0756491,95093.0,95089.0,0.00716]
[1736513595341,0.00131469,95092.0,95091.0,0.003]
[1736513595740,0.00131469,95092.0,95089.0,0.00716]
[1736513595942,0.00131469,95092.0,95090.0,0.003]
[1736513596486,0.00131469,95092.0,95089.0,0.00716]
[1736513596715,0.00131469,95092.0,95091.0,0.003]
[1736513596902,0.00131469,95092.0,95089.0,0.00716]
[1736513596903,0.00131469,95092.0,95090.0,0.01734299]
[1736513597105,0.00131469,95092.0,95090.0,0.003]
[1736513599058,0.00131469,95092.0,95089.0,0.00716]
[1736513599331,0.00131469,95092.0,95089.0,0.01016]
[1736513599588,0.210324,95091.0,95090.0,0.01734299]
[1736513599924,0.210324,95091.0,95089.0,0.00716]
[1736513600127,0.00131473,95090.0,95089.0,0.00716]
[1736513601408,0.00131473,95090.0,95089.0,0.00816]
[1736513602374,0.00131473,95090.0,95089.0,0.01116]
[1736513613744,0.0756491,95093.0,95089.0,0.004]
[1736513613745,4.91e-05,95093.0,95089.0,0.004]
[1736513613946,4.91e-05,95093.0,95092.0,0.0806]
[1736513614177,4.91e-05,95093.0,95092.0,0.18489976]
[1736513614383,4.91e-05,95093.0,95092.0,0.20223527]
[1736513615403,4.91e-05,95093.0,95092.0,0.20939527]
[1736513616412,4.91e-05,95093.0,95092.0,0.21439527]
[1736513617375,4.91e-05,95093.0,95092.0,0.21539527]
[1736513619366,4.91e-05,95093.0,95092.0,0.21535527]
[1736513626791,4.91e-05,95093.0,95092.0,0.36535527]
[1736513644892,4.91e-05,95093.0,95092.0,0.69235527]
[1736513645810,4.91e-05,95093.0,95092.0,0.69135527]
[1736513646206,4.91e-05,95093.0,95092.0,0.69035527]
[1736513646413,4.91e-05,95093.0,95092.0,0.69935527]
[1736513647587,4.91e-05,95093.0,95092.0,0.73220242]
[1736513654463,4.91e-05,95093.0,95092.0,0.77720242]
[1736513655371,4.91e-05,95093.0,95092.0,2.27720242]
[1736513658314,4.91e-05,95093.0,95092.0,0.77720242]
[1736513659261,4.91e-05,95093.0,95092.0,1.19647649]
[1736513659967,4.91e-05,95093.0,95092.0,0.77720242]
[1736513663142,4.91e-05,95093.0,95092.0,0.77320242]
[1736513663340,4.91e-05,95093.0,95092.0,0.77820242]
[1736513663899,4.91e-05,95093.0,95092.0,0.76920242]
[1736513664102,4.91e-05,95093.0,95092.0,0.77820242]
[1736513666856,4.91e-05,95093.0,95092.0,2.27820242]
[1736513673939,4.91e-05,95093.0,95092.0,0.77820242]
[1736513677960,4.91e-05,95093.0,95092.0,2.27820242]
[1736513684053,4.91e-05,95093.0,95092.0,2.26920242]
[1736513684252,1e-07,95093.0,95092.0,2.37320242]
[1736513684426,1e-07,95093.0,95092.0,2.38320242]
[1736513684790,1e-07,95093.0,95092.0,2.38920242]
[1736513686169,1e-07,95093.0,95092.0,2.93710242]
[1736513692415,8.53e-05,95110.0,95092.0,2.93710242]
[1736513692416,0.00994441,95100.0,95093.0,0.6979]
[1736513692615,0.00994441,95100.0,95099.0,0.46460676]
[1736513692829,0.00994441,95100.0,95099.0,0.49745391]
[1736513693125,0.00994441,95100.0,95099.0,0.51522769]
[1736513694024,0.00994441,95100.0,95099.0,0.52422769]
[1736513694227,0.00994441,95100.0,95099.0,0.53130769]
[1736513694666,0.00994441,95100.0,95099.0,0.53530769]
[1736513698378,0.00994441,95100.0,95099.0,0.86230769]
[1736513699453,0.00994441,95100.0,95099.0,0.88332883]
[1736513700260,0.00994441,95100.0,95099.0,2.38332883]
[1736513700458,0.00994441,95100.0,95099.0,2.39401414]
[1736513703166,0.00994441,95100.0,95099.0,0.89401414]